Cogmind - Beta 16 *** ADVENTURER MODE // 2025.11.16 @ 11:46:16 Player: oshi0ne1 Result: Destroyed by Y-45 Defender with Beam Rifle Performance ------------- Evolutions (0) 0 Regions Visited (2) 400 Robots Destroyed (11) 55 Value Destroyed (354) 354 Prototype IDs (0) 0 Alien Tech Used (0) 0 Bonus (0) 0 TOTAL SCORE: 809 Bonus ------- None Cogmind --------- Core Integrity 0/250 Matter 231/300 Energy 160/160 System Corruption 0% Temperature Cool (68) Movement Core (300) Ox5 Location -10/Mines Parts ------- > --- POWER (1) -------- Light Nuclear Core > --- PROPULSION (2) --- (None) > --- UTILITY (2) ------ Medium Storage Unit Targeting Computer > --- WEAPON (2) ------- Small Laser > --- INVENTORY (10) --- Light Ion Engine Light Ion Engine Combat Airjet Targeting Computer Grenade Launcher Mining Claw Peak State ------------ > --- POWER ------------ Ion Engine > --- PROPULSION ------- Aluminum Leg Aluminum Leg > --- UTILITY ---------- Medium Storage Unit Targeting Computer > --- WEAPON ----------- Light Cannon Light Cannon > --- INVENTORY -------- Light Ion Engine Light Ion Engine Combat Airjet Targeting Computer Small Laser Grenade Launcher Mining Claw [Rating: 8] Favorites ----------- Power Ion Engine Engine Ion Engine Power Core Light Nuclear Core Propulsion Aluminum Leg Leg Aluminum Leg Wheel Wheel Utility Medium Storage Unit Storage Medium Storage Unit Processor Targeting Computer Weapon Light Cannon Energy Gun Small Laser Ballistic Gun Assault Rifle Ballistic Cannon Light Cannon Launcher Grenade Launcher Slashing Weapon Mining Claw Build | -11 -10 -10 ------- Run | Yrd Mat Min Slots Evolved . | . . . Power . | . . . Propulsion . | . . . Utility . | . . . Weapon . | . . . Parts Attached 16 | 6 9 1 Power 2 | 1 . 1 Engine 1 | 1 . . Core 1 | . . 1 Reactor . | . . . Propulsion 4 | 2 2 . Treads . | . . . Leg 2 | . 2 . Wheel 2 | 2 . . Hover . | . . . Flight . | . . . Utility 3 | 1 2 . Device . | . . . Storage 2 | 1 1 . Processor 1 | . 1 . Hackware . | . . . Protection . | . . . Artifact . | . . . Weapon 7 | 2 5 . Energy Gun 1 | . 1 . Energy Cannon . | . . . Ballistic Gun 2 | 2 . . Ballistic Cannon 2 | . 2 . Launcher 1 | . 1 . Special Weapon . | . . . Impact Weapon . | . . . Slashing Weapon 1 | . 1 . Piercing Weapon . | . . . Special Melee Weapon . | . . . Unidentified Prototypes . | . . . Parts Lost 9 | . 4 5 Power 1 | . . 1 Propulsion 4 | . 2 2 Utility . | . . . Weapon 4 | . 2 2 Highest Loss Streak 5 | . 3 5 To Critical Strikes . | . . . Average Backups 5 | 2 5 6 Power 1 | . 1 2 Propulsion . | 1 . . Utility . | . . 1 Weapon 2 | . 3 2 Tool/Special . | . . . Unused Backups 4 | . . 4 Power 2 | . . 2 Propulsion 1 | . . 1 Utility 1 | . . 1 Weapon . | . . . Tool/Special . | . . . Average Slot Usage (%) 89 | . 87 93 Engine 13 | . 14 12 Leg 19 | . 16 22 Wheel 6 | . 10 . Storage 14 | . 14 14 Processor 7 | . 2 14 Energy Gun 3 | . 2 3 Ballistic Gun 6 | . 10 . Ballistic Cannon 17 | . 12 23 Slashing Weapon 1 | . 2 . Peak Build Rating 8 | 6 7 8 Average Rating 6 | 4 6 7 On Entrance 4 | . 6 7 Avg Prop Armor Cover (%) . | . . . Naked Turns . | . . . Heaviest Build 21 | 14 21 21 Greatest Support 20 | 20 20 20 Greatest Overweight (x) 6 | . 4 6 Average Overweight (x) . | . . 1 Largest Inventory Capacity 10 | 8 10 10 Average Capacity 9 | 6 9 10 Most Carried 8 | 4 8 8 Average Carried 6 | 2 6 6 Final Capacity 10 | 8 10 10 Final Carried 6 | 4 6 6 Class Distribution -------------------- 100% | Mutant Dominant Class ---------------- Mutant | -10/Materials Mutant | -10/Mines Resources | -11 -10 -10 ----------- Run | Yrd Mat Min Matter Collected 562 | 256 104 202 Remotely . | . . . Salvage Created 348 | . 215 133 Parts 19 | . 13 6 Haulers Intercepted . | . . . Recyclers Shooed . | . . . Parts Field Recycled . | . . . Retrieved Matter . | . . . Parts Self-Destructed . | . . . Prevented . | . . . Parts Restored . | . . . Kills | -11 -10 -10 ------- Run | Yrd Mat Min Combat Hostiles Destroyed 15 | . 7 8 Guns 6 | . 3 3 Cannons 7 | . 3 4 AOE 1 | . 1 . Classes Destroyed 5 | . 3 2 Watcher 1 | . 1 . Swarmer 3 | . 3 . Grunt 6 | . 4 2 Sentry 1 | . . 1 Assembled 5 | . . 5 Best Kill Streak 5 | . 3 5 Combat Bots Only 5 | . 3 5 Max Kills in Single Turn 1 | . 1 1 Gunslinging . | . . . Exploded 1 | . 1 . Melee . | . . . Uniques/NPCs Destroyed . | . . . Combat | -11 -10 -10 -------- Run | Yrd Mat Min Hostile Shots Fired 124 | . 62 62 Missed 30 | . 18 12 Hits 94 | . 44 50 Projectile 94 | . 44 50 AOE 4 | . . 4 Critical Strikes 2 | . 1 1 Damage Taken 1134 | . 519 615 Core 253 | . 140 113 Absorbed by Shields . | . . . Ignored by Resistances 329 | . 154 175 Core Remaining (%) 100 | 100 . . Volleys Fired 54 | . 28 26 Largest 2 | . 2 2 Hottest 70 | . 60 70 Shots Fired 98 | . 49 49 Gun 53 | . 39 14 Cannon 45 | . 10 35 Launcher . | . . . Special . | . . . Kinetic 77 | . 42 35 Thermal 21 | . 7 14 Explosive . | . . . Electromagnetic . | . . . Robot Hit Streak 15 | . 15 10 Robot Miss Streak 2 | . 2 2 Penetration Max . | . . . Secondary Targets . | . . . Shots Hit Robots 74 | . 37 37 Core Hits 27 | . 12 15 Critical Kills . | . . . Critical Parts Destroyed . | . . . Critical Strikes 1 | . 1 . Blast 1 | . 1 . Melee Attacks . | . . . Impact . | . . . Slashing . | . . . Piercing . | . . . Sneak Attacks . | . . . Combat Hostiles . | . . . Follow-up Attacks . | . . . Damage Inflicted 1065 | . 476 589 Guns 494 | . 384 110 Cannons 571 | . 92 479 Explosions . | . . . Melee . | . . . Ramming . | . . . Kinetic 897 | . 418 479 Thermal 168 | . 58 110 Explosive . | . . . Electromagnetic . | . . . Impact . | . . . Slashing . | . . . Piercing . | . . . Highest Corruption . | . . . Average Corruption . | . . . Corruption Purged . | . . . Corruption Blocked . | . . . Overload Shots . | . . . Overflow Damage . | . . . Projectiles . | . . . Explosions . | . . . Melee . | . . . Knockbacks 8 | . 1 7 Impact . | . . . Kinetic 8 | . 1 7 Secondary . | . . . Self-Inflicted Damage . | . . . Shots . | . . . Rammed . | . . . Targets Rammed . | . . . Kicked . | . . . Crushed . | . . . Highest Temperature 75 | . 52 75 Average Temperature 22 | . 11 25 Received Heat Transfer 429 | . 228 201 Siege Activations . | . . . Martial Activations . | . . . Shielding Activations . | . . . Robots Disrupted . | . . . Combat Hostiles . | . . . Robots Corrupted . | . . . Combat Hostiles . | . . . Parts Fried . | . . . Impact Corruptions . | . . . Robots Melted 1 | . . 1 Combat Hostiles 1 | . . 1 Parts Melted . | . . . Heat Transferred 375 | . 125 250 Parts Sabotaged . | . . . Parts Stolen . | . . . Parts Stripped . | . . . Power Chain Reactions . | . . . Alert | -11 -10 -10 ------- Run | Yrd Mat Min Maximum Alert Level . | . . . Low Security (%) 100 | 100 100 100 Level 1 . | . . . Level 2 . | . . . Level 3 . | . . . Level 4 . | . . . Level 5 . | . . . High Security . | . . . Max Security . | . . . Peak Influence 118 | . 118 50 Initial 29 | . . 29 Average 37 | . 60 16 Influence Increases 324 | . 254 70 Destroy 0b10 Robot/C 200 | . 140 60 Destroy 0b10 Robot/NC 5 | . 5 . Destroy Leader 52 | . 42 10 Successful Hack 4 | . 4 . Disable Machine 18 | . 18 . Lose Combat Pursuer 45 | . 45 . Influence Decreases 304 | . 164 140 Entered New Map 61 | . . 61 Time Decay 193 | . 124 69 Lost Part 50 | . 40 10 Squads Dispatched 1 | . 1 . Investigation 1 | . 1 . Extermination . | . . . Reinforcement . | . . . Assault . | . . . Garrison . | . . . Intercept . | . . . Searches Triggered . | . . . Construction Impeded . | . . . Haulers Reinforced . | . . . Active Scanning Responses . | . . . Cargo Convoy Interrupts . | . . . Stealth | -11 -10 -10 --------- Run | Yrd Mat Min Distress Signals 4 | . 3 1 Communications Jammed . | . . . Distress Signals . | . . . Times Spotted 27 | . 14 13 Peak Tracking Total 6 | . 6 4 Tactical Retreats 3 | . 3 . Traps | -11 -10 -10 ------- Run | Yrd Mat Min Traps Triggered . | . . . Indirectly . | . . . Trap Hack Attempts . | . . . Triggered . | . . . Disarmed . | . . . Reprogrammed . | . . . Reused . | . . . Traps Extracted . | . . . Installed . | . . . Triggered . | . . . Machines | -11 -10 -10 ---------- Run | Yrd Mat Min Machines Disabled 2 | . 2 . Max in Single Turn 2 | . 2 . Machines Repaired . | . . . Machines Dismantled . | . . . Machines Sabotaged . | . . . Overloaded Fab Kills . | . . . Hacking | -11 -10 -10 --------- Run | Yrd Mat Min Machines Accessed 2 | . 2 . Terminals 2 | . 2 . Fabricators . | . . . Repair Stations . | . . . Recycling Units . | . . . Scanalyzers . | . . . Garrison Access . | . . . Total Hacks 5 | . 5 . Successful 2 | . 2 . Failed 3 | . 3 . Catastrophic . | . . . Database Lockouts . | . . . Manual . | . . . Terminals 5 | . 5 . Fabricators . | . . . Repair Stations . | . . . Recycling Units . | . . . Scanalyzers . | . . . Garrison Access . | . . . Terminal Hacks 2 | . 2 . Branch Access Points 1 | . 1 . Zone Layout 1 | . 1 . Fabricator Hacks . | . . . Repair Station Hacks . | . . . Recycling Unit Hacks . | . . . Scanalyzer . | . . . Garrison Access Hacks . | . . . Unauthorized Hacks . | . . . Terminals . | . . . Fabricators . | . . . Repair Stations . | . . . Recycling Units . | . . . Scanalyzers . | . . . Garrison Access . | . . . Data Cores Recovered . | . . . Used . | . . . Hacking Detections 2 | . 2 . Full Trace Events 1 | . 1 . Feedback Events . | . . . Feedback Blocked . | . . . Robot Schematics Acquired . | . . . Robots Built . | . . . Authchips . | . . . Time . | . . . Total Robot Build Rating . | . . . Part Schematics Acquired . | . . . Parts Built . | . . . Authchips . | . . . Time . | . . . Total Part Build Rating . | . . . Part Studies Acquired . | . . . Parts Repaired . | . . . Time . | . . . Parts Recycled . | . . . Recycled Matter . | . . . Retrieved Matter . | . . . Retrieved Components . | . . . Parts Scanalyzed . | . . . Part Schematics Acquired . | . . . Parts Damaged . | . . . Bothacking | -11 -10 -10 ------------ Run | Yrd Mat Min Used RIF Installer . | . . . Robots Hacked . | . . . Non-combat . | . . . Combat . | . . . Robot Hacks Applied . | . . . Relay Couplers Released . | . . . Fabnet Peak Effective % . | . . . Robots Rewired . | . . . Allies Hacked . | . . . Hacks Repelled . | . . . Allies | -11 -10 -10 -------- Run | Yrd Mat Min Total Allies . | . . . Largest Group . | . . . Highest-Rated Group . | . . . Highest-Rated Ally . | . . . Total Orders . | . . . Ally Attacks . | . . . Total Damage . | . . . Kills . | . . . Allies Corrupted . | . . . Allies Melted . | . . . Intel | -11 -10 -10 ------- Run | Yrd Mat Min Active Infowar (turns) . | . . . Robot Analysis Total . | . . . Derelict Logs Recovered 1 | . . 1 Drone Launches . | . . . Drone Recoveries . | . . . Exploration | -11 -10 -10 ------------- Run | Yrd Mat Min Turns Passed 599 | 60 304 235 Spaces Moved 279 | 58 151 70 Core 8 | 3 3 2 Treads . | . . . Legs 148 | . 80 68 Wheels 123 | 55 68 . Hover . | . . . Flight . | . . . Fastest Speed 50 | 50 80 190 Average Speed 136 | 78 132 193 Slowest Speed 350 | 80 250 350 Overloaded Moves . | . . . Propulsion Burnouts . | . . . Robots Hopped . | . . . Potential Cave-ins . | . . . Cave-ins Triggered . | . . . Exploration Rate (%) 19 | 3 38 17 Regions Visited 2 Branch Regions 1 Pre-discovered Areas . | . . . Known Exits Taken 1 | . 1 . Unknown Exits Taken 1 | 1 . . Scrap Searched . | . . . Spaces Dug . | . . . Terrain Destroyed . | . . . Melee . | . . . Projectile . | . . . AOE . | . . . Terrain Rammed . | . . . Walls Destroyed . | . . . Machines Disabled . | . . . Actions | -11 -10 -10 --------- Run | Yrd Mat Min Total 394 | 70 203 121 Wait 27 | . 6 21 Move 277 | 57 150 70 Hop . | . . . Pick Up 14 | 6 6 2 Fast Attach 7 | 5 2 . Attach 7 | 1 4 2 Detach . | . . . Swap 6 | . 6 . Drop 2 | 1 1 . Fire 54 | . 28 26 Melee . | . . . Ram . | . . . Kick . | . . . Crush . | . . . Escape Stasis . | . . . Rewire . | . . . Trap . | . . . Miscellaneous . | . . . Route ------- -11/Scrapyard -10/Materials (discovered 2 exits: [Mat] / *Min) -10/Mines History --------- Turn | Location | Event 3 | -11/Scrapyard | Discovered new exit (range 16) 61 | -11/Scrapyard | Entered Materials 78 | -10/Materials | Discovered new exit (range 15) 100 | -10/Materials | Identified exit to Mines 206 | -10/Materials | Lost 3 parts (2n1w) 226 | -10/Materials | Core integrity fell below 50% 322 | -10/Materials | Build established: Mutant 365 | -10/Materials | Entered Mines 366 | -10/Mines | Assembled infested the area 371 | -10/Mines | Assisted by a Guerilla fighting off Assembled 578 | -10/Mines | Learned 4 Materials zone layouts 589 | -10/Mines | Core integrity fell below 20% 600 | -10/Mines | Destroyed by Y-45 Defender with Beam Rifle Last Messages --------------- as-44485 knocked back. as-44485 destroyed. as-71678 knocked back. Lgt. Cannon destroyed. as-34878 destroyed. Aluminum Leg destroyed. as-71678 destroyed. as-14209 knocked back. as-14209 destroyed. Acquired 4 matter. as-81955 destroyed. Aluminum Leg destroyed. Acquired derelict log, extracted data. Data stored: Materials zone layouts (x4). Ion Engine destroyed. Critical hit (Burn: +37). Lgt. Cannon destroyed. Y-45 Defender heat spikes uncontrollably. Y-45 Defender critical meltdown. Acquired 28 matter. Map ----- +----------------------------------------------------+ | ???? ??????# ## #??????? | | ???? ??????# ## #??????? | | ???? ?????# ## #######??????? | | ????# ?????# # ##### ###????????????? | | ????# ?????#=#= ## #??????????????? | | ????# ######%=## #??????????????? | | ???## # ## %% ##??????????????? | | ??##"%# ## # ##???????????????? | | ??#"# = ## # # #????????????????? | | ??##% ###### %#????????????????? | | ??# ! [ #????????????????? | | ??# ### ##????????????????? | | ??## ### #?????????????????? | | ???## # ## # ##?????????????????? | | ????## ## # # ##??????????????????? | | ?????# #########???????????????????? | | ?????# #???????????????????????????? | | ?????# #???????????????????????????? | | ?????# #???????????????????????????? | | ?????# #???????????????????????????? | | ?????# #######?????????????????????? | | ?????# ##"!["##????????????????????? | | ?????# #""!!""#????????????????????? | | ?????# # #????????????????????? | | ?????# ##Y% #?????????????????????? | | ?????# ###/@###????????????????????? | | ?????# # #????????????????????? | | ?????#% %#????????????????????? | | ?????# % ####a* ?????????????? | | ?????## % %% ? ???????????????? | | ??????## % ?????????????? | | ???????## %### ???????????? | | ???????? #???#### ####???????????? | | ???????## #???????###??????????????? | | ????????# #????????????????????????? | | ????????# ????????????????????????? | | ???????? ????????????????????????? | | ???????? ???????????????????????? | | ???????? ???????????????????????? | | ???????? ??????????????????????? | | ??????? ??????????????????????? | | ???????? ???????????????????????? | | ???????? ????????????????????????? | | ????????????????????????????????????? | | ????????????????????????????????????? | | ????????????????????????????????????? | | ????????????????????????????????????? | | ????????????????????????????????????? | | ????????????????????????????????????? | | ????????????????????????????????????? | +----------------------------------------------------+ Best States ------------- Heat Dissipation 25 Energy Generation 14 Energy Capacity 250 Matter Stores 296 Matter Capacity 300 Sight Range 16 Terrain Scan Density 10 Resistance: KI 20 Resistance: TH 20 Resistance: EX 20 Resistance: EM 20 Resistance: I 20 Resistance: S 20 Resistance: P 20 Evasion (%) 50 Targeting Accuracy 5 Offensive Hacking 10 Item Schematics ----------------- None Robot Schematics ------------------ None Fabricated ------------ Nothing Repaired ---------- Nothing Studied --------- None Alien Tech Used ----------------- None Achievements -------------- None Challenges ------------ None Game ------ Seed ChromionRecoilOptics Manual? 0 Play Time 00:07:55 Cumulative 11.3 hours Start 2025.11.16 @ 11:40:18 End 2025.11.16 @ 11:46:16 Sessions 1 Manual Loads 0 Difficulty Adventurer Special Mode None Game No. 23 Rogue 1 Adventurer 22 Explorer 0 Win Type - Total 0 Types 0/0/0/0/0/0/0/0/0/0 Lore% 9 Gallery% 17 Achievement% 14 Wizard Run 0 Options --------- Layout 2 ASCII 0 Keyboard 0 Movement Mouse Keybinds 0 Fullscreen 1 Font 24/Smallcaps Map View 50x44 Zoom Use 0% Tactical HUD 0 Map Filters NONE Filters NONE Steam 1 RUN: 485ee53d-9e1d-4e1b-8600-065af5c84874